fUSD/lending_fUSD_20250505
["ID","MTS","AMOUNT","RATE_DAILY","PERIOD"]
[359980271,1746461442207,-450.0,0.00019845,2]
[359980274,1746461442219,-450.0,0.00019845,2]
[359980276,1746461442230,-450.0,0.00019845,2]
[359980278,1746461442241,-450.0,0.00019845,2]
[359980280,1746461442252,-450.0,0.00019845,2]
[359980282,1746461442262,-450.0,0.00019845,2]
[359980284,1746461442273,-334.69258514,0.00019845,2]
[359980287,1746461442285,-450.0,0.00019845,2]
[359980289,1746461442296,-450.0,0.00019845,2]
[359980291,1746461442306,-526.08533867,0.00019845,2]
[359980293,1746461442317,-450.0,0.00019845,2]
[359980295,1746461442328,-450.0,0.00019845,2]
[359980297,1746461442340,-450.0,0.00019845,2]
[359980299,1746461442350,-450.0,0.00019845,2]
[359980302,1746461442362,-555.19635294,0.00019845,2]
[359980304,1746461442373,-450.0,0.00019845,2]
[359980306,1746461442384,-450.0,0.00019845,2]
[359980308,1746461442395,-450.0,0.00019845,2]
[359980310,1746461442406,-450.0,0.00019845,2]
[359980312,1746461442419,-450.0,0.00019845,2]
[359980315,1746461442430,-450.0,0.00019845,2]
[359980317,1746461442441,-450.0,0.00019845,2]
[359980319,1746461442451,-1011.67,0.00019845,2]
[359980321,1746461442463,-1011.67,0.00019845,2]
[359980323,1746461442474,-450.0,0.00019845,2]
[359980325,1746461442485,-450.0,0.00019845,2]
[359980328,1746461442497,-450.0,0.00019845,2]
[359980330,1746461442509,-532.36,0.00019845,2]
[359980332,1746461442520,-532.36,0.00019845,2]
[359980334,1746461442531,-504.45588881,0.00019845,2]
[359980336,1746461442543,-564.67,0.00019845,2]
[359980339,1746461442555,-564.67,0.00019845,2]
[359980341,1746461442567,-450.0,0.00019845,2]
[359980343,1746461442580,-450.0,0.00019845,2]
[359980346,1746461442592,-450.0,0.00019845,2]
[359980348,1746461442603,-450.0,0.00019845,2]
[359980350,1746461442613,-450.0,0.00019845,2]
[359980374,1746461442834,-450.0,0.00019845,2]
[359980377,1746461442851,-450.0,0.00019845,2]
[359980379,1746461442861,-450.0,0.00019845,2]
[359980381,1746461442870,-450.0,0.00019845,2]
[359980383,1746461442880,-450.0,0.00019845,2]
[359980385,1746461442889,-520.24525347,0.00019845,2]
[359980387,1746461442899,-450.0,0.00019845,2]
[359980388,1746461442908,-516.11,0.00019845,2]
[359980390,1746461442919,-516.11,0.00019845,2]
[359980392,1746461442929,-450.0,0.00019845,2]
[359980394,1746461442938,-515.18967014,0.00019845,2]
[359980396,1746461442949,-450.0,0.00019845,2]
[359980398,1746461442959,-450.0,0.00019845,2]
[359980401,1746461442969,-450.0,0.00019845,2]
[359980402,1746461442978,-450.0,0.00019845,2]
[359980404,1746461442988,-628.55,0.00019845,2]
[359980406,1746461442998,-628.55,0.00019845,2]
[359980409,1746461443008,-450.0,0.00019845,2]
[359980411,1746461443017,-450.0,0.00019845,2]
[359980412,1746461443026,-450.0,0.00019845,2]
[359980414,1746461443036,-450.0,0.00019845,2]
[359980417,1746461443045,-450.0,0.00019845,2]
[359980419,1746461443055,-450.0,0.00019845,2]
[359980421,1746461443064,-450.0,0.00019845,2]
[359980424,1746461443073,-450.0,0.00019845,2]
[359980427,1746461443083,-329.71,0.00019845,2]
[359980430,1746461443092,-450.0,0.00019845,2]
[359980433,1746461443102,-448.10493303,0.00019845,2]
[359980437,1746461443111,-450.0,0.00019845,2]
[359980439,1746461443121,-450.0,0.00019845,2]
[359980443,1746461443131,-450.0,0.00019845,2]
[359980446,1746461443140,-450.0,0.00019845,2]
[359980448,1746461443149,-798.81,0.00019845,2]
[359980450,1746461443158,-798.81,0.00019845,2]
[359980453,1746461443169,-450.0,0.00019845,2]
[359980455,1746461443178,-450.0,0.00019845,2]
[359980456,1746461443187,-510.51,0.00019845,2]
[359980458,1746461443197,-450.0,0.00019845,2]
[359980460,1746461443206,-450.0,0.00019845,2]
[359980462,1746461443215,-450.0,0.00019845,2]
[359980464,1746461443224,-450.0,0.00019845,2]
[359980466,1746461443233,-2261.79,0.00019845,2]
[359980468,1746461443243,-504.9,0.00019845,2]
[359980470,1746461443252,-504.9,0.00019845,2]
[359980472,1746461443261,-450.0,0.00019845,2]
[359980474,1746461443271,-450.0,0.00019845,2]
[359980476,1746461443280,-2385.33,0.00019845,2]
[359980478,1746461443289,-450.0,0.00019845,2]
[359980480,1746461443298,-450.0,0.00019845,2]
[359980482,1746461443308,-450.0,0.00019845,2]
[359980484,1746461443317,-450.0,0.00019845,2]
[359980486,1746461443326,-2331.07,0.00019845,2]
[359980488,1746461443335,-450.0,0.00019845,2]
[359980490,1746461443346,-450.0,0.00019845,2]
[359980492,1746461443355,-450.0,0.00019845,2]
[359980495,1746461443364,-450.0,0.00019845,2]
[359980498,1746461443374,-2106.29,0.00019845,2]
[359980501,1746461443385,-50997.7,0.00019845,2]
[359980504,1746461443394,-450.0,0.00019845,2]
[359980507,1746461443404,-450.0,0.00019845,2]
[359980509,1746461443413,-1729.59,0.00019845,2]
[359980511,1746461443423,-7182.79,0.00019845,2]
[359980513,1746461443432,-1020.07,0.00019845,2]
[359980515,1746461443442,-3637.5,0.00019845,2]
[359980517,1746461443452,-204.91228373,0.00019845,2]
[359980519,1746461443461,-507.81,0.00019845,2]
[359980522,1746461443472,-507.81,0.00019845,2]
[359980524,1746461443481,-622.93009836,0.00019848,2]
[359980525,1746461443491,-988.82160774,0.00019848,2]
[359980528,1746461443501,-450.0,0.00019852,2]
[359980530,1746461443511,-450.0,0.00019852,2]
[359980532,1746461443520,-1770.48,0.00019852,2]
[359980534,1746461443531,-516.74,0.00019852,2]
[359980536,1746461443541,-450.0,0.00019852,2]
[359980538,1746461443550,-450.0,0.00019852,2]
[359980541,1746461443559,-500.0,0.00019852,2]
[359980543,1746461443568,-367.17078788,0.00019852,2]
[359980545,1746461443578,-500.0,0.00019852,2]
[359980547,1746461443586,-500.0,0.00019852,2]
[359980548,1746461443595,-159.72858065,0.00019852,2]
[359980550,1746461443604,-150.0,0.00019852,2]
[359980552,1746461443614,-150.0,0.00019852,2]
[359980554,1746461443623,-150.0,0.00019852,2]
[359980556,1746461443632,-200.21605195,0.00019852,2]
[359980558,1746461443642,-300.0,0.00019852,2]
[359980560,1746461443655,-4304.23493,0.00019853,2]
[359980562,1746461443664,-535.08,0.00019853,2]
[359980564,1746461443675,-208.89,0.00019853,2]
[359980566,1746461443684,-226.54749,0.00019853,2]
[359980568,1746461443694,-450.0,0.00019853,2]
[359980570,1746461443703,-450.0,0.00019853,2]
[359980573,1746461443712,-503.59,0.00019853,2]
[359980575,1746461443723,-450.0,0.00019853,2]
[359980577,1746461443732,-226.55,0.00019853,2]
[359980578,1746461443741,-2486.04,0.00019853,2]
[359980580,1746461443750,-1341.16,0.00019853,2]
[359980583,1746461443760,-205.99471108,0.00019853,2]
[359980586,1746461443781,-2055.79528892,0.00019853,2]
[359980588,1746461443790,-450.0,0.00019853,2]
[359980589,1746461443800,-2385.33,0.00019853,2]
[359980591,1746461443809,-450.0,0.00019853,2]
[359980593,1746461443818,-2331.07,0.00019853,2]
[359980595,1746461443827,-450.0,0.00019853,2]
[359980596,1746461443837,-602.7,0.00019853,2]
[359980598,1746461443846,-808.8612053,0.00019853,2]
[359980599,1746461443857,-1297.4287947,0.00019853,2]
[359980600,1746461443866,-22.15126728,0.00019853,2]
[359980601,1746461443892,-304.19441968,0.00019844,2]
[359980602,1746461443901,-136.36545854,0.00019853,2]
[359980603,1746461443913,-341.48327418,0.00019853,2]
[359980604,1746461443923,-450.0,0.00019853,2]
[359980605,1746461443932,-1079.41672579,0.00019853,2]
[359980610,1746461444009,-160.87177425,0.00019753,2]
[359980611,1746461444019,-39131.43327421,0.00019853,2]
[359980613,1746461444028,-450.0,0.00019853,2]
[359980615,1746461444037,-50997.7,0.00019853,2]
[359980617,1746461444046,-450.0,0.00019853,2]
[359980619,1746461444055,-450.0,0.00019853,2]
[359980621,1746461444064,-500.0,0.00019853,2]
[359980623,1746461444073,-450.0,0.00019853,2]
[359980625,1746461444083,-450.0,0.00019853,2]
[359980627,1746461444092,-1729.59,0.00019853,2]
[359980629,1746461444101,-295.17,0.00019853,2]
[359980631,1746461444111,-814.33,0.00019853,2]
[359980633,1746461444121,-7182.79,0.00019853,2]
[359980635,1746461444130,-450.0,0.00019853,2]
[359980637,1746461444140,-1020.07,0.00019853,2]
[359980640,1746461444150,-2753.84,0.00019853,2]
[359980642,1746461444159,-3637.5,0.00019853,2]
[359980644,1746461444168,-470.0,0.00019853,2]
[359980646,1746461444178,-450.0,0.00019853,2]
[359980648,1746461444187,-450.0,0.00019853,2]
[359980650,1746461444197,-450.0,0.00019853,2]
[359980651,1746461444206,-189.607532,0.00019853,2]
[359980654,1746461444216,-450.0,0.00019853,2]
[359980656,1746461444226,-450.0,0.00019853,2]
[359980658,1746461444235,-644.8,0.00019853,2]
[359980660,1746461444244,-450.0,0.00019853,2]
[359980662,1746461444254,-10555.82,0.00019853,2]
[359980664,1746461444263,-450.0,0.00019853,2]
[359980666,1746461444273,-1379.17,0.00019853,2]
[359980667,1746461444282,-450.0,0.00019853,2]
[359980669,1746461444291,-539.09,0.00019853,2]
[359980671,1746461444300,-450.0,0.00019853,2]
[359980673,1746461444309,-450.0,0.00019853,2]
[359980675,1746461444319,-450.0,0.00019853,2]
[359980678,1746461444329,-450.0,0.00019853,2]
[359980679,1746461444338,-450.0,0.00019853,2]
[359980681,1746461444348,-1009.45,0.00019853,2]
[359980684,1746461444357,-551.5,0.00019853,2]
[359980686,1746461444367,-450.0,0.00019853,2]
[359980688,1746461444377,-450.0,0.00019853,2]
[359980690,1746461444387,-450.0,0.00019853,2]
[359980692,1746461444397,-450.0,0.00019853,2]
[359980694,1746461444406,-450.0,0.00019853,2]
[359980696,1746461444416,-475.0,0.00019853,2]
[359980697,1746461444426,-450.0,0.00019853,2]
[359980700,1746461444436,-613.230198,0.00019853,2]
[359980702,1746461444445,-450.0,0.00019853,2]
[359980704,1746461444454,-450.0,0.00019853,2]
[359980705,1746461444463,-450.0,0.00019853,2]
[359980707,1746461444473,-450.0,0.00019853,2]
[359980709,1746461444483,-450.0,0.00019853,2]
[359980712,1746461444492,-450.0,0.00019853,2]
[359980714,1746461444501,-450.0,0.00019854,2]
[359980716,1746461444511,-450.0,0.00019854,2]
[359980718,1746461444520,-450.0,0.00019854,2]
[359980720,1746461444532,-450.0,0.00019854,2]
[359980722,1746461444542,-450.0,0.00019854,2]
[359980724,1746461444552,-450.0,0.00019854,2]
[359980726,1746461444562,-450.0,0.00019854,2]
[359980728,1746461444571,-450.0,0.00019854,2]
[359980730,1746461444581,-450.0,0.00019854,2]
[359980732,1746461444591,-450.0,0.00019854,2]
[359980734,1746461444600,-450.0,0.00019854,2]
[359980736,1746461444610,-485.16,0.00019854,2]
[359980738,1746461444620,-450.0,0.00019854,2]
[359980740,1746461444630,-506.82373895,0.00019854,2]
[359980742,1746461444639,-450.0,0.00019854,2]
[359980744,1746461444654,-450.0,0.00019854,2]
[359980746,1746461444663,-450.0,0.00019854,2]
[359980748,1746461444674,-450.0,0.00019854,2]
[359980750,1746461444683,-1011.67,0.00019854,2]
[359980752,1746461444693,-535.08,0.00019854,2]
[359980754,1746461444702,-450.0,0.00019854,2]
[359980756,1746461444711,-532.36,0.00019854,2]
[359980758,1746461444722,-564.67,0.00019854,2]
[359980760,1746461444732,-450.0,0.00019854,2]
[359980762,1746461444741,-450.0,0.00019854,2]
[359980764,1746461444751,-450.0,0.00019854,2]
[359980766,1746461444760,-450.0,0.00019854,2]
[359980768,1746461444769,-450.0,0.00019854,2]
[359980770,1746461444779,-450.0,0.00019854,2]
[359980772,1746461444788,-450.0,0.00019854,2]
[359980774,1746461444797,-450.0,0.00019854,2]
[359980776,1746461444806,-450.0,0.00019854,2]
[359980778,1746461444815,-516.11,0.00019854,2]
[359980780,1746461444825,-450.0,0.00019854,2]
[359980782,1746461444835,-450.0,0.00019854,2]
[359980784,1746461444845,-450.0,0.00019854,2]
[359980786,1746461444855,-628.55,0.00019854,2]
[359980788,1746461444864,-450.0,0.00019854,2]
[359980790,1746461444874,-450.0,0.00019854,2]
[359980792,1746461444884,-450.0,0.00019854,2]
[359980794,1746461444894,-450.0,0.00019854,2]
[359980796,1746461444904,-450.0,0.00019854,2]
[359980798,1746461444913,-450.0,0.00019854,2]
[359980800,1746461444924,-450.0,0.00019854,2]
[359980802,1746461444933,-450.0,0.00019854,2]
[359980804,1746461444944,-798.81,0.00019854,2]
[359980806,1746461444954,-450.0,0.00019854,2]
[359980808,1746461444964,-450.0,0.00019854,2]
[359980810,1746461444974,-450.0,0.00019854,2]
[359980812,1746461444984,-450.0,0.00019854,2]
[359980814,1746461444993,-2486.04,0.00019854,2]
[359980816,1746461445003,-1341.16,0.00019854,2]
[359980818,1746461445012,-450.0,0.00019854,2]
[359980819,1746461445022,-2261.79,0.00019854,2]
[359980821,1746461445032,-504.9,0.00019854,2]
[359980823,1746461445041,-210.2,0.00019854,2]
[359980825,1746461445051,-450.0,0.00019854,2]
[359980827,1746461445060,-2385.33,0.00019854,2]
[359980830,1746461445081,-450.0,0.00019854,2]
[359980833,1746461445097,-450.0,0.00019854,2]
[359980835,1746461445107,-2331.07,0.00019854,2]
[359980837,1746461445117,-602.7,0.00019854,2]
[359980839,1746461445127,-450.0,0.00019854,2]
[359980841,1746461445138,-450.0,0.00019854,2]
[359980843,1746461445148,-2106.29,0.00019854,2]
[359980845,1746461445158,-500.0,0.00019854,2]
[359980847,1746461445169,-450.0,0.00019854,2]
[359980849,1746461445179,-40210.85,0.00019854,2]
[359980851,1746461445188,-450.0,0.00019854,2]
[359980853,1746461445198,-50997.7,0.00019854,2]
[359980855,1746461445207,-450.0,0.00019854,2]
[359980857,1746461445217,-450.0,0.00019854,2]
[359980859,1746461445227,-500.0,0.00019854,2]
[359980861,1746461445237,-450.0,0.00019854,2]
[359980863,1746461445246,-450.0,0.00019854,2]
[359980865,1746461445256,-1729.59,0.00019854,2]
[359980868,1746461445269,-814.33,0.00019854,2]
[359980869,1746461445278,-7182.79,0.00019854,2]
[359980872,1746461445288,-450.0,0.00019854,2]
[359980874,1746461445298,-1020.07,0.00019854,2]
[359980876,1746461445308,-2753.84,0.00019854,2]
[359980878,1746461445318,-3637.5,0.00019854,2]
[359980880,1746461445328,-507.81,0.00019854,2]
[359980881,1746461445337,-450.0,0.00019854,2]
[359980884,1746461445347,-450.0,0.00019854,2]
[359980885,1746461445357,-450.0,0.00019854,2]
[359980887,1746461445367,-450.0,0.00019854,2]
[359980889,1746461445376,-450.0,0.00019854,2]
[359980891,1746461445386,-450.0,0.00019854,2]
[359980893,1746461445396,-450.0,0.00019854,2]
[359980895,1746461445406,-644.8,0.00019854,2]
[359980898,1746461445417,-450.0,0.00019854,2]
[359980900,1746461445427,-450.0,0.00019854,2]
[359980902,1746461445437,-450.0,0.00019854,2]
[359980904,1746461445447,-10555.82,0.00019854,2]
[359980906,1746461445457,-1379.17,0.00019854,2]
[359980908,1746461445470,-1770.48,0.00019854,2]
[359980910,1746461445480,-1770.48,0.00019854,2]
[359980912,1746461445490,-450.0,0.00019854,2]
[359980914,1746461445500,-539.09,0.00019854,2]
[359980916,1746461445509,-450.0,0.00019854,2]
[359980918,1746461445520,-450.0,0.00019854,2]
[359980920,1746461445530,-450.0,0.00019854,2]
[359980922,1746461445539,-450.0,0.00019854,2]
[359980924,1746461445550,-290.02,0.00019854,2]
[359980926,1746461445561,-1009.45,0.00019854,2]
[359980929,1746461445571,-450.0,0.00019854,2]
[359980931,1746461445580,-516.74,0.00019854,2]
[359980933,1746461445590,-450.0,0.00019854,2]
[359980935,1746461445601,-516.74,0.00019854,2]
[359980937,1746461445611,-450.0,0.00019854,2]
[359980939,1746461445621,-450.0,0.00019854,2]
[359980941,1746461445631,-190.49031961,0.00019854,2]
[359980943,1746461445641,-450.0,0.00019854,2]
[359980945,1746461445655,-475.0,0.00019854,2]
[359980947,1746461445665,-450.0,0.00019854,2]
[359980949,1746461445675,-450.0,0.00019854,2]
[359980951,1746461445687,-450.0,0.00019854,2]
[359980953,1746461445697,-450.0,0.00019854,2]
[359980955,1746461445706,-450.0,0.00019854,2]
[359980957,1746461445716,-450.0,0.00019854,2]
[359980959,1746461445726,-450.0,0.00019854,2]
[359980961,1746461445736,-342961.87113994,0.00019855,2]
[359980963,1746461445751,-733.15717061,0.00019855,2]
[359980966,1746461445762,-450.0,0.00019855,2]
[359980968,1746461445771,-450.0,0.00019855,2]
[359980970,1746461445782,-450.0,0.00019855,2]
[359980972,1746461445791,-450.0,0.00019855,2]
[359980974,1746461445801,-231.36,0.00019855,2]
[359980976,1746461445811,-306.882829,0.00019855,2]
[359980978,1746461445823,-143.117171,0.00019855,2]
[359980996,1746461445987,-450.0,0.00019855,2]
[359980998,1746461445997,-23.5388326,0.00019855,2]
[359981045,1746461446378,-160.87177424,0.00019827,2]
[359981047,1746461446389,-426.4611674,0.00019855,2]
[359981049,1746461446399,-450.0,0.00019855,2]
[359981051,1746461446409,-450.0,0.00019855,2]
[359981053,1746461446419,-450.0,0.00019855,2]
[359981055,1746461446429,-450.0,0.00019855,2]
[359981057,1746461446438,-450.0,0.00019855,2]
[359981059,1746461446448,-475.51806962,0.00019855,2]
[359981061,1746461446458,-450.0,0.00019855,2]
[359981063,1746461446468,-450.0,0.00019855,2]
[359981065,1746461446477,-450.0,0.00019855,2]
[359981067,1746461446487,-450.0,0.00019855,2]
[359981068,1746461446496,-450.0,0.00019855,2]
[359981069,1746461446506,-450.0,0.00019855,2]
[359981070,1746461446516,-450.0,0.00019855,2]
[359981071,1746461446526,-450.0,0.00019855,2]
[359981072,1746461446536,-485.16,0.00019855,2]
[359981073,1746461446546,-485.16,0.00019855,2]
[359981074,1746461446556,-450.0,0.00019855,2]
[359981075,1746461446565,-265.33226179,0.00019855,2]
[359981076,1746461446574,-450.0,0.00019855,2]
[359981077,1746461446583,-450.0,0.00019855,2]
[359981078,1746461446592,-450.0,0.00019855,2]
[359981079,1746461446602,-450.0,0.00019855,2]
[359981080,1746461446611,-188.82,0.00019855,2]
[359981082,1746461446621,-450.0,0.00019855,2]
[359981083,1746461446630,-450.0,0.00019855,2]
[359981084,1746461446640,-1011.67,0.00019855,2]
[359981085,1746461446653,-1011.67,0.00019855,2]
[359981086,1746461446662,-535.08,0.00019855,2]
[359981087,1746461446673,-535.08,0.00019855,2]
[359981088,1746461446682,-450.0,0.00019855,2]
[359981089,1746461446693,-450.0,0.00019855,2]
[359981092,1746461446703,-532.36,0.00019855,2]
[359981095,1746461446713,-532.36,0.00019855,2]
[359981097,1746461446725,-564.67,0.00019855,2]
[359981098,1746461446736,-564.67,0.00019855,2]
[359981099,1746461446745,-450.0,0.00019855,2]
[359981100,1746461446754,-450.0,0.00019855,2]
[359981101,1746461446763,-450.0,0.00019855,2]
[359981102,1746461446773,-450.0,0.00019855,2]
[359981103,1746461446783,-450.0,0.00019855,2]
[359981104,1746461446792,-450.0,0.00019855,2]
[359981105,1746461446802,-450.0,0.00019855,2]
[359981106,1746461446812,-450.0,0.00019855,2]
[359981107,1746461446822,-450.0,0.00019855,2]
[359981108,1746461446831,-450.0,0.00019855,2]
[359981109,1746461446841,-450.0,0.00019855,2]
[359981110,1746461446851,-450.0,0.00019855,2]
[359981111,1746461446861,-450.0,0.00019855,2]
[359981112,1746461446870,-450.0,0.00019855,2]
[359981113,1746461446880,-450.0,0.00019855,2]
[359981114,1746461446889,-450.0,0.00019855,2]
[359981116,1746461446899,-516.11,0.00019855,2]
[359981117,1746461446908,-516.11,0.00019855,2]
[359981118,1746461446918,-458.84752217,0.00019855,2]
[359981119,1746461446927,-450.0,0.00019855,2]
[359981120,1746461446938,-450.0,0.00019855,2]
[359981121,1746461446948,-450.0,0.00019855,2]
[359981122,1746461446959,-450.0,0.00019855,2]
[359981123,1746461446970,-194.71570339,0.00019855,2]
[359981124,1746461446983,-433.83429661,0.00019855,2]
[359981125,1746461446993,-628.55,0.00019855,2]
[359981126,1746461447002,-450.0,0.00019855,2]
[359981127,1746461447012,-450.0,0.00019855,2]
[359981128,1746461447022,-450.0,0.00019855,2]
[359981129,1746461447032,-450.0,0.00019855,2]
[359981130,1746461447042,-450.0,0.00019855,2]
[359981131,1746461447051,-450.0,0.00019855,2]
[359981132,1746461447060,-450.0,0.00019855,2]
[359981133,1746461447070,-450.0,0.00019855,2]
[359981134,1746461447079,-450.0,0.00019855,2]
[359981135,1746461447089,-450.0,0.00019855,2]
[359981136,1746461447099,-450.0,0.00019855,2]
[359981137,1746461447110,-450.0,0.00019855,2]
[359981138,1746461447120,-450.0,0.00019855,2]
[359981139,1746461447130,-405.04846086,0.00019855,2]
[359981246,1746461474037,156.79,0.00018883,2]
[359981247,1746461519078,23900.0,0.00018879,2]
[359981248,1746461519301,1420.42,0.00018879,2]
[359981249,1746461569292,-412.5784882,0.0001973,2]
[359981250,1746461569320,-200.0,0.00019737,2]
[359981251,1746461569346,-226.4288,0.00019744,2]
[359981252,1746461569373,-1000.0,0.00019744,2]
[359981253,1746461569400,-188.89241004,0.00019755,2]
[359981254,1746461569427,-200.0,0.000198,2]
[359981255,1746461569453,-300.0,0.00019843,2]
[359981256,1746461569488,-500.0,0.00019843,2]
[359981257,1746461569521,-500.0,0.00019843,2]
[359981258,1746461569556,-500.0,0.00019843,2]
[359981259,1746461569590,-500.0,0.00019843,2]
[359981260,1746461569624,-500.0,0.00019843,2]
[359981261,1746461569659,-500.0,0.00019843,2]
[359981262,1746461569700,-500.0,0.00019843,2]
[359981263,1746461569737,-500.0,0.00019843,2]
[359981264,1746461569772,-500.0,0.00019843,2]
[359981265,1746461569809,-500.0,0.00019843,2]
[359981266,1746461569846,-500.0,0.00019843,2]
[359981267,1746461569882,-500.0,0.00019843,2]
[359981268,1746461569923,-500.0,0.00019843,2]
[359981269,1746461569959,-500.0,0.00019843,2]
[359981270,1746461569994,-500.0,0.00019843,2]
[359981271,1746461570031,-500.0,0.00019843,2]
[359981272,1746461570066,-500.0,0.00019843,2]
[359981273,1746461570100,-500.0,0.00019843,2]
[359981274,1746461570134,-500.0,0.00019843,2]
[359981275,1746461570168,-500.0,0.00019843,2]
[359981276,1746461570201,-500.0,0.00019843,2]
[359981277,1746461570234,-500.0,0.00019843,2]
[359981278,1746461570270,-533.02788469,0.00019843,2]
[359981279,1746461570305,-500.0,0.00019843,2]
[359981280,1746461570340,-500.0,0.00019843,2]
[359981281,1746461570373,-500.0,0.00019843,2]
[359981282,1746461570407,-500.0,0.00019843,2]
[359981283,1746461570441,-500.0,0.00019843,2]
[359981284,1746461570476,-500.0,0.00019843,2]
[359981285,1746461570509,-500.0,0.00019843,2]
[359981286,1746461570544,-500.0,0.00019843,2]
[359981287,1746461570579,-500.0,0.00019843,2]
[359981288,1746461570614,-500.0,0.00019843,2]
[359981289,1746461570649,-500.0,0.00019843,2]
[359981290,1746461570685,-500.0,0.00019843,2]
[359981291,1746461570723,-500.0,0.00019843,2]
[359981292,1746461570759,-500.0,0.00019843,2]
[359981293,1746461570796,-500.0,0.00019843,2]
[359981294,1746461570832,-500.0,0.00019843,2]
[359981295,1746461570869,-500.0,0.00019843,2]
[359981296,1746461570905,-500.0,0.00019843,2]
[359981297,1746461570945,-500.0,0.00019843,2]
[359981298,1746461570981,-500.0,0.00019843,2]
[359981299,1746461571017,-500.0,0.00019843,2]
[359981300,1746461571053,-500.0,0.00019843,2]
[359981301,1746461571088,-500.0,0.00019843,2]
[359981302,1746461571122,-500.0,0.00019843,2]
[359981303,1746461571157,-500.0,0.00019843,2]
[359981304,1746461571192,-500.0,0.00019843,2]
[359981305,1746461571227,-500.0,0.00019843,2]
[359981306,1746461571264,-500.0,0.00019843,2]
[359981307,1746461571299,-500.0,0.00019843,2]
[359981308,1746461571335,-500.0,0.00019843,2]
[359981309,1746461571370,-500.0,0.00019843,2]
[359981310,1746461571400,-151.0,0.00019843,2]
[359981311,1746461571428,-289.7398658,0.00019843,2]
[359981312,1746461571454,-189.49425834,0.00019843,2]
[359981313,1746461571481,-207.4,0.00019843,2]
[359981314,1746461571508,-668.65185757,0.00019843,2]
[359981315,1746461571538,-2087.16,0.00019844,2]
[359981316,1746461571565,-450.0,0.00019844,2]
[359981317,1746461571593,-450.0,0.00019844,2]
[359981318,1746461571621,-2039.68,0.00019844,2]
[359981319,1746461571648,-450.0,0.00019844,2]
[359981320,1746461571676,-527.36,0.00019844,2]
[359981321,1746461571708,-450.0,0.00019844,2]
[359981322,1746461571737,-450.0,0.00019844,2]
[359981323,1746461571767,-1843.01,0.00019844,2]
[359981324,1746461571794,-450.0,0.00019844,2]
[359981325,1746461571820,-450.0,0.00019844,2]
[359981326,1746461571851,-44622.99,0.00019844,2]
[359981327,1746461572010,-450.0,0.00019844,2]
[359981328,1746461572040,-236.64,0.00019844,2]
[359981329,1746461572068,-450.0,0.00019844,2]
[359981330,1746461572097,-450.0,0.00019844,2]
[359981331,1746461572125,-450.0,0.00019844,2]
[359981332,1746461572152,-450.0,0.00019844,2]
[359981333,1746461572179,-450.0,0.00019844,2]
[359981334,1746461572207,-450.0,0.00019844,2]